{"text_format":"1","workbook":"xlsx","n_sheets":7,"sheets":["Hodnoceni","Nabidka_1","Nabidka_2","Nabidka_3","Nabidka_4","Nabidka_5","Nabidka_MIN"],"not_rendered":{"charts":0,"images":0,"macros":0,"external_links":0,"defined_names":0,"comments":0,"pivot_tables":0},"unopened":[],"bounds":{"document_bytes":16777216,"sheet_cells":100000,"rows_first":2000,"rows_last":500,"rows_between":2000,"halvings":0,"cell_chars":16384,"cell_head_chars":4096},"cells_cut":0,"cells_raw":0,"read":"whole","date_system":"1900"}

{"sheet":"Hodnoceni","index":0,"n_rows":24,"n_cols":7,"rows_kept":24,"cut":false,"hidden":false,"merged":[[15,1,15,6],[1,1,1,6],[21,1,21,6],[22,1,22,6],[23,1,23,6],[18,1,18,6],[16,1,16,6],[17,1,17,6]]}
[]
[null,"Příloha č. 8 zadávací dokumentace - Modelový příklad hodnocení pěti nabídek"]
[]
[null,"Tabulka výsledného hodnocení nabídek - počet bodů dle položek hodnocené nabídky"]
[null,"# nabídky",null,"účastník ZŘ","počet bodů celkem","počet bodů přepočtených dle váhy","pořadí nabídky"]
[null,{"$f":"Nabidka_1!D1","v":1},null,{"$f":"Nabidka_1!F1","v":"AA"},{"$f":"Nabidka_1!I5","v":{"$error":"#DIV/0!"}},{"$f":"Nabidka_1!J5","v":{"$error":"#DIV/0!"}},{"$f":"RANK(F6,$F$6:$F$10,0)","v":{"$error":"#DIV/0!"}}]
[null,{"$f":"Nabidka_2!D1","v":2},null,{"$f":"Nabidka_2!F1","v":"BB"},{"$f":"Nabidka_2!I5","v":{"$error":"#DIV/0!"}},{"$f":"Nabidka_2!J5","v":{"$error":"#DIV/0!"}},{"$f":"RANK(F7,$F$6:$F$10,0)","v":{"$error":"#DIV/0!"}}]
[null,{"$f":"Nabidka_3!D1","v":3},null,{"$f":"Nabidka_3!F1","v":"CC"},{"$f":"Nabidka_3!I5","v":{"$error":"#DIV/0!"}},{"$f":"Nabidka_3!J5","v":{"$error":"#DIV/0!"}},{"$error":"#DIV/0!"}]
[null,{"$f":"Nabidka_4!D1","v":4},null,{"$f":"Nabidka_4!F1","v":"DD"},{"$f":"Nabidka_4!I5","v":{"$error":"#DIV/0!"}},{"$f":"Nabidka_4!J5","v":{"$error":"#DIV/0!"}},{"$error":"#DIV/0!"}]
[null,{"$f":"Nabidka_5!D1","v":5},null,{"$f":"Nabidka_5!F1","v":"EE"},{"$f":"Nabidka_5!I5","v":{"$error":"#DIV/0!"}},{"$f":"Nabidka_5!J5","v":{"$error":"#DIV/0!"}},{"$error":"#DIV/0!"}]
[]
[]
[]
[null,"Popis Listů:"]
[null,"Hodnoceni = celkové vyhodnocení "]
[null,"Nabidka_1..5 = body a přepočtené body podle vah za nabídku, celkem 5 listů pro 5 nabídek"]
[null,"Nabidka_1..Nabidka_5 = nabídka účastníka zadávacího řízení. Identifikace listu i nabídky je podžlucena a připravena pro celkem 5 nabídek na 5 listech, tj. 1 list na 1 nabídku.  \nDoplní se body za příklady a lhůty."]
[null,"Nabidka_MIN = vyhodnocení a zobrazení minimální nabídkové ceny ke každé položce ze všech nabídek, nebo nejvyššího počtu bodů za každou položku, společné pro všechny listy a nabidky."]
[]
[]
[null,"Komentář:"]
[null,"Na listech Nabidka_1 .. Nabidka_5 lze upravovat vlastní hodnoty nabídky a modelovat tak vliv změny položky na pořadí (na hodnocení má vliv vždy nejvýhodnější nabídka za každou položku, která vstupuje do výpočtů bodů); ostatní listy se neupravují ani nevyplňují."]
[null,"Všechny listy jsou propojené, změny provedené na listech Nabídka_1..5 se vyhodnotí automaticky na listu Hodnoceni."]
[null,"Na listech Nabidka_1 .. Nabidka_5 musí výt vyplněné hodnoty větší nebo rovno 1. Chybové zobrazení #DIV/0! zmizí po vyplnění položek hodnocení."]

{"sheet":"Nabidka_1","index":1,"n_rows":107,"n_cols":10,"rows_kept":107,"cut":false,"hidden":false,"merged":[[101,1,101,3],[32,1,32,3],[1,1,1,6],[7,1,7,6],[15,1,15,5],[19,1,19,5],[26,1,26,3],[97,1,97,3],[43,1,43,3],[49,1,49,3],[66,1,66,3],[71,1,71,3],[87,1,87,4],[95,1,95,3],[76,1,76,3]]}
[null,"Příloha č. 2E zadávací dokumentace\nZávazný formulář pro účely hodnocení","Číslo nabídky:",1,"Účastník ZŘ:","AA"]
[null,"Účastník zadávacího řízení vyplňuje nebo upravuje žlutě podbarvené položky. \nU položek vyplněných zadavatelem je oprávněn změnit hodnotu pouze na vyšší - je-li uvedena mininimální hodnota, resp. na nižší - je-li uvedena maximální hodnota.",null,null,null,null,null,null,"Body za položky","Body za položky s vahou"]
[null,"Zeleně podbarvená pole doplňuje zadavatel na základě hodnocení.",null,null,null,null,null,null,"Celkem","Celkem"]
[]
[null,"Předmět plnění: ","Schéma hodnocení:","Váha:",null,null,null,null,{"$f":"SUM(I10:I107)","v":{"$error":"#DIV/0!"}},{"$f":"SUM(J10:J107)","v":{"$error":"#DIV/0!"}}]
[null,"Servisní služby","Cena",0.3]
[]
[null,"1. Cena za zajištění podpory SIS s garantovanou dostupností: (cena v Kč za čtvrtletí bez DPH)"]
["Číslo\n skupiny","Skupina funkčních bloků\nFunkční bloky jsou seskupeny a ohraničeny dvojitou čarou, vyplněná cena služeb pokrývá vždy celou skupinu funkčních bloků, resp. jejich seskupení ","Nabídka pro část veřejné zakázky ","Garantovaná dostupnost v %\n(minimální)","Lhůta na odstranění vady kat. A v hodinách (maximální)","Provozní režim\n(minimální)","Cena v Kč","Váha položky v %","Body za položku","Body za položku s vahou"]
[41,"EVID CENTRAL  (Evidenční systém statistického zpracování)",5,0.9,48,"5x8",null,0.05,{"$f":"Nabidka_MIN!G10/G10*100","v":{"$error":"#DIV/0!"}},{"$f":"I10*H10","v":{"$error":"#DIV/0!"}}]
[41,"VSTUP EVID KS (Evidenční systém statistického zpracování - instance na krajských správách)",5,0.92,48,"5x10",null,0.15,{"$f":"Nabidka_MIN!G11/G11*100","v":{"$error":"#DIV/0!"}},{"$f":"I11*H11","v":{"$error":"#DIV/0!"}}]
[42,"EVID CENTRAL ZPRAVODAJSKÁ POVINNOST (Výkazy dle IČO)",5,0.92,48,"5x10",null,0.1,{"$f":"Nabidka_MIN!G12/G12*100","v":{"$error":"#DIV/0!"}},{"$error":"#DIV/0!"}]
[]
[]
[]
[null,"Součet cen za zajištění podpory SIS s garantovanou dostupností: (cena v Kč za čtvrtletí bez DPH) ",null,null,null,null,{"$f":"SUM(G10:G15)","v":0}]
[]
[]
[]
[null,"Součet cen za zajištění podpory SIS s garantovanou dostupností: (cena v Kč za čtvrtletí bez DPH) součet cen z každého řádku za skupinou funkčních bloků přepočtenou (vynásobenou) na období plnění 4 let, tj. 16 čtvrtletí.\n\nPro tento součet cen stanovuje zadavatel maximálně přípustnou hodnotu, která činí 2,0 mil. Kč s tím, \nže její překročení je důvodem pro vyřazení nabídky. ",null,null,null,null,{"$f":"G16*16","v":0}]
[]
[]
[]
[null,"Předmět plnění: ","Schéma hodnocení:","Váha:"]
[null,"Služby rozvoje","Cena",0.26]
[]
[null,"2.a Cena za MD při obecném požadavku rozvoj na poskytnutí MD v termínech v kategorii A,B,C (cena v Kč za MD bez DPH)"]
[null,null,"Minimální hodnota pro hodnocení","Maximální hodnota","Nabízená hodnota "]
[null,"Prioritní MD NDB - kategorie A – poskytnutí služby se začátkem realizace do 1 dne",1,18000,null,null,null,0.01,{"$f":"Nabidka_MIN!E29/E29*100","v":{"$error":"#DIV/0!"}},{"$f":"I29*H29","v":{"$error":"#DIV/0!"}}]
[null,"Prioritní MD - kategorie B – poskytnutí služby se začátkem realizace od 2 do 5 dnů",1,16000,null,null,null,0.01,{"$f":"Nabidka_MIN!E30/E30*100","v":{"$error":"#DIV/0!"}},{"$f":"I30*H30","v":{"$error":"#DIV/0!"}}]
[null,"MD - kategorie C – poskytnutí služby se začátkem realizace od 6 dnů do 1 měsíce, s tím, že tato kategorie pokrývá i služby v rámci SIS, které mohou mít i delší dobu  plnění",1,12000,null,null,null,0.16,{"$f":"Nabidka_MIN!E31/E31*100","v":{"$error":"#DIV/0!"}},{"$error":"#DIV/0!"}]
[]
[null,"2.b Cena za předmět plnění - specifikované požadavky"]
[null,null,"Minimální hodnota pro hodnocení","Maximální hodnota","Nabízená hodnota "]
[null,"Optimalizace změn po migraci na ORACLE verze 12\nAnalýza potřebných úprav databázových procedur",1,80000,null,null,null,0.01,{"$f":"Nabidka_MIN!E35/E35*100","v":{"$error":"#DIV/0!"}},{"$f":"I35*H35","v":{"$error":"#DIV/0!"}}]
[null,"Optimalizace změn po migraci na ORACLE verze 12\nAnalýza potřebných úprav, resp. optimalizace aplikací",1,70000,null,null,null,0.01,{"$f":"Nabidka_MIN!E36/E36*100","v":{"$error":"#DIV/0!"}},{"$error":"#DIV/0!"}]
[null,"Požadavky na změnu - rozvoj funkcionalit dle funkčních bloků",1,600000,null,null,null,0.06,{"$f":"Nabidka_MIN!E37/E37*100","v":{"$error":"#DIV/0!"}},{"$error":"#DIV/0!"}]
[]
[]
[]
[null,"Předmět plnění: ","Schéma hodnocení:","Váha:"]
[null,"Služby ostatní","Cena",0.04]
[]
[null,"3.a Cena za MD při požadavku na poskytnutí služby v termínech v kategorii A,B,C (cena v Kč za MD bez DPH)"]
[null,null,"Minimální hodnota pro hodnocení","Maximální hodnota","Nabízená hodnota "]
[null,"Prioritní MD NDB - kategorie A – poskytnutí služby se začátkem realizace do 1 dne",1,18000,null,null,null,2.5000000000000001E-3,{"$f":"Nabidka_MIN!E46/E46*100","v":{"$error":"#DIV/0!"}},{"$f":"I46*H46","v":{"$error":"#DIV/0!"}}]
[null,"Prioritní MD - kategorie B – poskytnutí služby se začátkem realizace od 2 do 5 dnů",1,16000,null,null,null,2.5000000000000001E-3,{"$f":"Nabidka_MIN!E47/E47*100","v":{"$error":"#DIV/0!"}},{"$error":"#DIV/0!"}]
[null,"MD - kategorie C – poskytnutí služby se začátkem realizace od 6 dnů do 1 měsíce, s tím, že tato kategorie pokrývá i služby v rámci SIS, které mohou mít i delší dobu  plnění",1,12000,null,null,null,7.4999999999999997E-3,{"$f":"Nabidka_MIN!E48/E48*100","v":{"$error":"#DIV/0!"}},{"$error":"#DIV/0!"}]
[]
[null,"3.b Cena za předmět plnění - specifikované požadavky"]
[null,null,"Minimální hodnota pro hodnocení","Maximální hodnota","Nabízená hodnota "]
[null,"Zavedení nástroje pro řízení a dokumentaci poskytovaných služeb, včetně školení interních uživatelů ",1,100000,null,null,null,2.5000000000000001E-3,{"$f":"Nabidka_MIN!E52/E52*100","v":{"$error":"#DIV/0!"}},{"$f":"I52*H52","v":{"$error":"#DIV/0!"}}]
[null,"Správa a podpora nástroje pro řízení a dokumentaci poskytovaných služeb,  s garantovanou dostupností 95% na čtvrtletní bázi (cena za 1 čtvrtletí poskytovaných služeb, vč. služby Servisdesk)",1,100000,null,null,null,1.4999999999999999E-2,{"$f":"Nabidka_MIN!E53/E53*100","v":{"$error":"#DIV/0!"}},{"$error":"#DIV/0!"}]
[null,"Převedení licence pro provozování nástroje pro řízení a dokumentaci poskytovaných služeb",1,400000,null,null,null,5.0000000000000001E-3,{"$f":"Nabidka_MIN!E54/E54*100","v":{"$error":"#DIV/0!"}},{"$error":"#DIV/0!"}]
[null,"Nasazení nové verze APV SIS na Testovací a produkční prostředí nad rámec služeb servisu (čtvrtletní balíčky)",1,20000,null,null,null,2.5000000000000001E-3,{"$f":"Nabidka_MIN!E55/E55*100","v":{"$error":"#DIV/0!"}},{"$error":"#DIV/0!"}]
[null,"Nasazení hotfixu APV SIS na Testovací a produkční prostředí nad rámec služeb servisu (čtvrtletní balíčky)",1,20000,null,null,null,2.5000000000000001E-3,{"$f":"Nabidka_MIN!E56/E56*100","v":{"$error":"#DIV/0!"}},{"$error":"#DIV/0!"}]
[]
[]
[]
[]
[]
[]
[null,"Předmět plnění: ","Schéma hodnocení:","Váha:"]
[null,"Služby rozvoje a servisní služby","Kvalitativní\nLhůty",0.04]
[]
[null,null,"Minimální hodnota pro hodnocení","Maximální hodnota","Nabízená hodnota "]
[null,"4.a Lhůta na odstranění vady plnění (zjištěné v akceptačním řízení) v hodinách za pracovní dny"]
[null,"Vada kategorie A",1,120,null,null,null,1.2E-2,{"$f":"Nabidka_MIN!E68/E68*100","v":{"$error":"#DIV/0!"}},{"$f":"I68*H68","v":{"$error":"#DIV/0!"}}]
[null,"Vada kategorie B",1,240,null,null,null,8.0000000000000002E-3,{"$f":"Nabidka_MIN!E69/E69*100","v":{"$error":"#DIV/0!"}},{"$error":"#DIV/0!"}]
[null,"Vada kategorie C",1,504,null,null,null,4.0000000000000001E-3,{"$f":"Nabidka_MIN!E70/E70*100","v":{"$error":"#DIV/0!"}},{"$error":"#DIV/0!"}]
[]
[null,"4.b Lhůta na odstranění záruční vady plnění v hodinách za pracovní dny "]
[null,"Vada kategorie A",1,120,null,null,null,8.0000000000000002E-3,{"$f":"Nabidka_MIN!E73/E73*100","v":{"$error":"#DIV/0!"}},{"$f":"I73*H73","v":{"$error":"#DIV/0!"}}]
[null,"Vada kategorie B",1,240,null,null,null,5.0000000000000001E-3,{"$f":"Nabidka_MIN!E74/E74*100","v":{"$error":"#DIV/0!"}},{"$error":"#DIV/0!"}]
[null,"Vada kategorie C",1,504,null,null,null,3.0000000000000001E-3,{"$f":"Nabidka_MIN!E75/E75*100","v":{"$error":"#DIV/0!"}},{"$error":"#DIV/0!"}]
[]
[null,"4.c Reakční doba v hodinách "]
[null,"Vada kategorie A",1,24,null,null,null,0]
[null,"Vada kategorie B",1,48,null,null,null,0]
[null,"Vada kategorie C",1,168,null,null,null,0]
[null,"Pozn.:"]
[null,"U lhůt pro odstranění vad a reakční doby se uvažuje 1 den v délce 24 hodin."]
[]
[]
[null,"Předmět plnění: ","Schéma hodnocení:","Váha:"]
[null,"Služby","Kvalitativní\nPříklad",0.24]
[]
[null,"5. Zpracování příkladu poskytovaných služeb"]
[null,null,"Minimální hodnota bodů","Maximální  hodnota bodů","Počet bodů"]
[null,"Zpracování příkladu řízení poskytovaných služeb",0,5,null,null,null,0.08,{"$f":"E90/Nabidka_MIN!E90*100","v":{"$error":"#DIV/0!"}},{"$f":"I90*H90","v":{"$error":"#DIV/0!"}}]
[null,"Zpracování příkladu EVID report",0,2,null,null,null,0.16,{"$f":"E91/Nabidka_MIN!E91*100","v":{"$error":"#DIV/0!"}},{"$error":"#DIV/0!"}]
[]
[null,"Předmět plnění: ","Schéma hodnocení:","Váha:"]
[null,"Služby","Kvalitativní\nProvozní parametry",0.12]
[]
[null,"6. Provozní režim a dostupnost u skupin funkčních bloků uvedené v tabulce 1. Cena za zajištění podpory SIS s garantovanou dostupností"]
[null,null,"Minimální hodnota bodů","Maximální  hodnota bodů","Počet bodů"]
[null,"Číslo skupiny: 41"]
[null,"Rozšíření provozního režimu na 5x12",0,8]
[null,"Zvýšení dostupnosti na 95%",0,14]
[null,"Zvýšení dostupnosti na 97%",0,20]
[null,"Číslo skupiny: 42"]
[null,"Rozšíření provozního režimu na 5x12",0,8]
[null,"Rozšíření provozního režimu na 7x16",0,22]
[null,"Zvýšení dostupnosti na 95%",0,14]
[null,"Zvýšení dostupnosti na 97%",0,20]
[null,"Celkem",0,70,null,null,null,0.12,{"$f":"E107/Nabidka_MIN!E107*100","v":{"$error":"#DIV/0!"}},{"$f":"I107*H107","v":{"$error":"#DIV/0!"}}]

{"sheet":"Nabidka_2","index":2,"n_rows":107,"n_cols":10,"rows_kept":107,"cut":false,"hidden":false,"merged":[[32,1,32,3],[1,1,1,6],[7,1,7,6],[15,1,15,5],[19,1,19,5],[26,1,26,3],[95,1,95,3],[97,1,97,3],[101,1,101,3],[43,1,43,3],[49,1,49,3],[66,1,66,3],[71,1,71,3],[76,1,76,3],[87,1,87,4]]}
[null,"Příloha č. 2E zadávací dokumentace\nZávazný formulář pro účely hodnocení","Číslo nabídky:",2,"Účastník ZŘ:","BB"]
[null,"Účastník zadávacího řízení vyplňuje nebo upravuje žlutě podbarvené položky. \nU položek vyplněných zadavatelem je oprávněn změnit hodnotu pouze na vyšší - je-li uvedena mininimální hodnota, resp. na nižší - je-li uvedena maximální hodnota.",null,null,null,null,null,null,"Body za položky","Body za položky s vahou"]
[null,"Zeleně podbarvená pole doplňuje zadavatel na základě hodnocení.",null,null,null,null,null,null,"Celkem","Celkem"]
[]
[null,"Předmět plnění: ","Schéma hodnocení:","Váha:",null,null,null,null,{"$f":"SUM(I10:I107)","v":{"$error":"#DIV/0!"}},{"$f":"SUM(J10:J107)","v":{"$error":"#DIV/0!"}}]
[null,"Servisní služby","Cena",0.3]
[]
[null,"1. Cena za zajištění podpory SIS s garantovanou dostupností: (cena v Kč za čtvrtletí bez DPH)"]
["Číslo\n skupiny","Skupina funkčních bloků\nFunkční bloky jsou seskupeny a ohraničeny dvojitou čarou, vyplněná cena služeb pokrývá vždy celou skupinu funkčních bloků, resp. jejich seskupení ","Nabídka pro část veřejné zakázky ","Garantovaná dostupnost v %\n(minimální)","Lhůta na odstranění vady kat. A v hodinách (maximální)","Provozní režim\n(minimální)","Cena v Kč","Váha položky v %","Body za položku","Body za položku s vahou"]
[41,"EVID CENTRAL  (Evidenční systém statistického zpracování)",5,0.9,48,"5x8",null,0.05,{"$f":"Nabidka_MIN!G10/G10*100","v":{"$error":"#DIV/0!"}},{"$f":"I10*H10","v":{"$error":"#DIV/0!"}}]
[41,"VSTUP EVID KS (Evidenční systém statistického zpracování - instance na krajských správách)",5,0.92,48,"5x10",null,0.15,{"$f":"Nabidka_MIN!G11/G11*100","v":{"$error":"#DIV/0!"}},{"$f":"I11*H11","v":{"$error":"#DIV/0!"}}]
[42,"EVID CENTRAL ZPRAVODAJSKÁ POVINNOST (Výkazy dle IČO)",5,0.92,48,"5x10",null,0.1,{"$f":"Nabidka_MIN!G12/G12*100","v":{"$error":"#DIV/0!"}},{"$error":"#DIV/0!"}]
[]
[]
[]
[null,"Součet cen za zajištění podpory SIS s garantovanou dostupností: (cena v Kč za čtvrtletí bez DPH) ",null,null,null,null,{"$f":"SUM(G10:G15)","v":0}]
[]
[]
[]
[null,"Součet cen za zajištění podpory SIS s garantovanou dostupností: (cena v Kč za čtvrtletí bez DPH) součet cen z každého řádku za skupinou funkčních bloků přepočtenou (vynásobenou) na období plnění 4 let, tj. 16 čtvrtletí.\n\nPro tento součet cen stanovuje zadavatel maximálně přípustnou hodnotu, která činí 2,0 mil. Kč s tím, \nže její překročení je důvodem pro vyřazení nabídky. ",null,null,null,null,{"$f":"G16*16","v":0}]
[]
[]
[]
[null,"Předmět plnění: ","Schéma hodnocení:","Váha:"]
[null,"Služby rozvoje","Cena",0.26]
[]
[null,"2.a Cena za MD při obecném požadavku rozvoj na poskytnutí MD v termínech v kategorii A,B,C (cena v Kč za MD bez DPH)"]
[null,null,"Minimální hodnota pro hodnocení","Maximální hodnota","Nabízená hodnota "]
[null,"Prioritní MD NDB - kategorie A – poskytnutí služby se začátkem realizace do 1 dne",1,18000,null,null,null,0.01,{"$f":"Nabidka_MIN!E29/E29*100","v":{"$error":"#DIV/0!"}},{"$f":"I29*H29","v":{"$error":"#DIV/0!"}}]
[null,"Prioritní MD - kategorie B – poskytnutí služby se začátkem realizace od 2 do 5 dnů",1,16000,null,null,null,0.01,{"$f":"Nabidka_MIN!E30/E30*100","v":{"$error":"#DIV/0!"}},{"$error":"#DIV/0!"}]
[null,"MD - kategorie C – poskytnutí služby se začátkem realizace od 6 dnů do 1 měsíce, s tím, že tato kategorie pokrývá i služby v rámci SIS, které mohou mít i delší dobu  plnění",1,12000,null,null,null,0.16,{"$f":"Nabidka_MIN!E31/E31*100","v":{"$error":"#DIV/0!"}},{"$error":"#DIV/0!"}]
[]
[null,"2.b Cena za předmět plnění - specifikované požadavky"]
[null,null,"Minimální hodnota pro hodnocení","Maximální hodnota","Nabízená hodnota "]
[null,"Optimalizace změn po migraci na ORACLE verze 12\nAnalýza potřebných úprav databázových procedur",1,80000,null,null,null,0.01,{"$f":"Nabidka_MIN!E35/E35*100","v":{"$error":"#DIV/0!"}},{"$f":"I35*H35","v":{"$error":"#DIV/0!"}}]
[null,"Optimalizace změn po migraci na ORACLE verze 12\nAnalýza potřebných úprav, resp. optimalizace aplikací",1,70000,null,null,null,0.01,{"$f":"Nabidka_MIN!E36/E36*100","v":{"$error":"#DIV/0!"}},{"$error":"#DIV/0!"}]
[null,"Požadavky na změnu - rozvoj funkcionalit dle funkčních bloků",1,600000,null,null,null,0.06,{"$f":"Nabidka_MIN!E37/E37*100","v":{"$error":"#DIV/0!"}},{"$error":"#DIV/0!"}]
[]
[]
[]
[null,"Předmět plnění: ","Schéma hodnocení:","Váha:"]
[null,"Služby ostatní","Cena",0.04]
[]
[null,"3.a Cena za MD při požadavku na poskytnutí služby v termínech v kategorii A,B,C (cena v Kč za MD bez DPH)"]
[null,null,"Minimální hodnota pro hodnocení","Maximální hodnota","Nabízená hodnota "]
[null,"Prioritní MD NDB - kategorie A – poskytnutí služby se začátkem realizace do 1 dne",1,18000,null,null,null,2.5000000000000001E-3,{"$f":"Nabidka_MIN!E46/E46*100","v":{"$error":"#DIV/0!"}},{"$f":"I46*H46","v":{"$error":"#DIV/0!"}}]
[null,"Prioritní MD - kategorie B – poskytnutí služby se začátkem realizace od 2 do 5 dnů",1,16000,null,null,null,2.5000000000000001E-3,{"$f":"Nabidka_MIN!E47/E47*100","v":{"$error":"#DIV/0!"}},{"$error":"#DIV/0!"}]
[null,"MD - kategorie C – poskytnutí služby se začátkem realizace od 6 dnů do 1 měsíce, s tím, že tato kategorie pokrývá i služby v rámci SIS, které mohou mít i delší dobu  plnění",1,12000,null,null,null,7.4999999999999997E-3,{"$f":"Nabidka_MIN!E48/E48*100","v":{"$error":"#DIV/0!"}},{"$error":"#DIV/0!"}]
[]
[null,"3.b Cena za předmět plnění - specifikované požadavky"]
[null,null,"Minimální hodnota pro hodnocení","Maximální hodnota","Nabízená hodnota "]
[null,"Zavedení nástroje pro řízení a dokumentaci poskytovaných služeb, včetně školení interních uživatelů ",1,100000,null,null,null,2.5000000000000001E-3,{"$f":"Nabidka_MIN!E52/E52*100","v":{"$error":"#DIV/0!"}},{"$f":"I52*H52","v":{"$error":"#DIV/0!"}}]
[null,"Správa a podpora nástroje pro řízení a dokumentaci poskytovaných služeb,  s garantovanou dostupností 95% na čtvrtletní bázi (cena za 1 čtvrtletí poskytovaných služeb, vč. služby Servisdesk)",1,100000,null,null,null,1.4999999999999999E-2,{"$f":"Nabidka_MIN!E53/E53*100","v":{"$error":"#DIV/0!"}},{"$error":"#DIV/0!"}]
[null,"Převedení licence pro provozování nástroje pro řízení a dokumentaci poskytovaných služeb",1,400000,null,null,null,5.0000000000000001E-3,{"$f":"Nabidka_MIN!E54/E54*100","v":{"$error":"#DIV/0!"}},{"$error":"#DIV/0!"}]
[null,"Nasazení nové verze APV SIS na Testovací a produkční prostředí nad rámec služeb servisu (čtvrtletní balíčky)",1,20000,null,null,null,2.5000000000000001E-3,{"$f":"Nabidka_MIN!E55/E55*100","v":{"$error":"#DIV/0!"}},{"$error":"#DIV/0!"}]
[null,"Nasazení hotfixu APV SIS na Testovací a produkční prostředí nad rámec služeb servisu (čtvrtletní balíčky)",1,20000,null,null,null,2.5000000000000001E-3,{"$f":"Nabidka_MIN!E56/E56*100","v":{"$error":"#DIV/0!"}},{"$error":"#DIV/0!"}]
[]
[]
[]
[]
[]
[]
[null,"Předmět plnění: ","Schéma hodnocení:","Váha:"]
[null,"Služby rozvoje a servisní služby","Kvalitativní\nLhůty",0.04]
[]
[null,null,"Minimální hodnota pro hodnocení","Maximální hodnota","Nabízená hodnota "]
[null,"4.a Lhůta na odstranění vady plnění (zjištěné v akceptačním řízení) v hodinách za pracovní dny"]
[null,"Vada kategorie A",1,120,null,null,null,1.2E-2,{"$f":"Nabidka_MIN!E68/E68*100","v":{"$error":"#DIV/0!"}},{"$f":"I68*H68","v":{"$error":"#DIV/0!"}}]
[null,"Vada kategorie B",1,240,null,null,null,8.0000000000000002E-3,{"$f":"Nabidka_MIN!E69/E69*100","v":{"$error":"#DIV/0!"}},{"$error":"#DIV/0!"}]
[null,"Vada kategorie C",1,504,null,null,null,4.0000000000000001E-3,{"$f":"Nabidka_MIN!E70/E70*100","v":{"$error":"#DIV/0!"}},{"$error":"#DIV/0!"}]
[]
[null,"4.b Lhůta na odstranění záruční vady plnění v hodinách za pracovní dny "]
[null,"Vada kategorie A",1,120,null,null,null,8.0000000000000002E-3,{"$f":"Nabidka_MIN!E73/E73*100","v":{"$error":"#DIV/0!"}},{"$f":"I73*H73","v":{"$error":"#DIV/0!"}}]
[null,"Vada kategorie B",1,240,null,null,null,5.0000000000000001E-3,{"$f":"Nabidka_MIN!E74/E74*100","v":{"$error":"#DIV/0!"}},{"$error":"#DIV/0!"}]
[null,"Vada kategorie C",1,504,null,null,null,3.0000000000000001E-3,{"$f":"Nabidka_MIN!E75/E75*100","v":{"$error":"#DIV/0!"}},{"$error":"#DIV/0!"}]
[]
[null,"4.c Reakční doba v hodinách "]
[null,"Vada kategorie A",1,24,null,null,null,0]
[null,"Vada kategorie B",1,48,null,null,null,0]
[null,"Vada kategorie C",1,168,null,null,null,0]
[null,"Pozn.:"]
[null,"U lhůt pro odstranění vad a reakční doby se uvažuje 1 den v délce 24 hodin."]
[]
[]
[null,"Předmět plnění: ","Schéma hodnocení:","Váha:"]
[null,"Služby","Kvalitativní\nPříklad",0.24]
[]
[null,"5. Zpracování příkladu poskytovaných služeb"]
[null,null,"Minimální hodnota bodů","Maximální  hodnota bodů","Počet bodů"]
[null,"Zpracování příkladu řízení poskytovaných služeb",0,5,null,null,null,0.08,{"$f":"E90/Nabidka_MIN!E90*100","v":{"$error":"#DIV/0!"}},{"$f":"I90*H90","v":{"$error":"#DIV/0!"}}]
[null,"Zpracování příkladu EVID report",0,2,null,null,null,0.16,{"$f":"E91/Nabidka_MIN!E91*100","v":{"$error":"#DIV/0!"}},{"$error":"#DIV/0!"}]
[]
[null,"Předmět plnění: ","Schéma hodnocení:","Váha:"]
[null,"Služby","Kvalitativní\nProvozní parametry",0.12]
[]
[null,"6. Provozní režim a dostupnost u skupin funkčních bloků uvedené v tabulce 1. Cena za zajištění podpory SIS s garantovanou dostupností"]
[null,null,"Minimální hodnota bodů","Maximální  hodnota bodů","Počet bodů"]
[null,"Číslo skupiny: 41"]
[null,"Rozšíření provozního režimu na 5x12",0,8]
[null,"Zvýšení dostupnosti na 95%",0,14]
[null,"Zvýšení dostupnosti na 97%",0,20]
[null,"Číslo skupiny: 42"]
[null,"Rozšíření provozního režimu na 5x12",0,8]
[null,"Rozšíření provozního režimu na 7x16",0,22]
[null,"Zvýšení dostupnosti na 95%",0,14]
[null,"Zvýšení dostupnosti na 97%",0,20]
[null,"Celkem",0,70,null,null,null,0.12,{"$f":"E107/Nabidka_MIN!E107*100","v":{"$error":"#DIV/0!"}},{"$f":"I107*H107","v":{"$error":"#DIV/0!"}}]

{"sheet":"Nabidka_3","index":3,"n_rows":107,"n_cols":10,"rows_kept":107,"cut":false,"hidden":false,"merged":[[32,1,32,3],[1,1,1,6],[7,1,7,6],[15,1,15,5],[19,1,19,5],[26,1,26,3],[95,1,95,3],[97,1,97,3],[101,1,101,3],[43,1,43,3],[49,1,49,3],[66,1,66,3],[71,1,71,3],[76,1,76,3],[87,1,87,4]]}
[null,"Příloha č. 2E zadávací dokumentace\nZávazný formulář pro účely hodnocení","Číslo nabídky:",3,"Účastník ZŘ:","CC"]
[null,"Účastník zadávacího řízení vyplňuje nebo upravuje žlutě podbarvené položky. \nU položek vyplněných zadavatelem je oprávněn změnit hodnotu pouze na vyšší - je-li uvedena mininimální hodnota, resp. na nižší - je-li uvedena maximální hodnota.",null,null,null,null,null,null,"Body za položky","Body za položky s vahou"]
[null,"Zeleně podbarvená pole doplňuje zadavatel na základě hodnocení.",null,null,null,null,null,null,"Celkem","Celkem"]
[]
[null,"Předmět plnění: ","Schéma hodnocení:","Váha:",null,null,null,null,{"$f":"SUM(I10:I107)","v":{"$error":"#DIV/0!"}},{"$f":"SUM(J10:J107)","v":{"$error":"#DIV/0!"}}]
[null,"Servisní služby","Cena",0.3]
[]
[null,"1. Cena za zajištění podpory SIS s garantovanou dostupností: (cena v Kč za čtvrtletí bez DPH)"]
["Číslo\n skupiny","Skupina funkčních bloků\nFunkční bloky jsou seskupeny a ohraničeny dvojitou čarou, vyplněná cena služeb pokrývá vždy celou skupinu funkčních bloků, resp. jejich seskupení ","Nabídka pro část veřejné zakázky ","Garantovaná dostupnost v %\n(minimální)","Lhůta na odstranění vady kat. A v hodinách (maximální)","Provozní režim\n(minimální)","Cena v Kč","Váha položky v %","Body za položku","Body za položku s vahou"]
[41,"EVID CENTRAL  (Evidenční systém statistického zpracování)",5,0.9,48,"5x8",null,0.05,{"$f":"Nabidka_MIN!G10/G10*100","v":{"$error":"#DIV/0!"}},{"$f":"I10*H10","v":{"$error":"#DIV/0!"}}]
[41,"VSTUP EVID KS (Evidenční systém statistického zpracování - instance na krajských správách)",5,0.92,48,"5x10",null,0.15,{"$f":"Nabidka_MIN!G11/G11*100","v":{"$error":"#DIV/0!"}},{"$f":"I11*H11","v":{"$error":"#DIV/0!"}}]
[42,"EVID CENTRAL ZPRAVODAJSKÁ POVINNOST (Výkazy dle IČO)",5,0.92,48,"5x10",null,0.1,{"$f":"Nabidka_MIN!G12/G12*100","v":{"$error":"#DIV/0!"}},{"$error":"#DIV/0!"}]
[]
[]
[]
[null,"Součet cen za zajištění podpory SIS s garantovanou dostupností: (cena v Kč za čtvrtletí bez DPH) ",null,null,null,null,{"$f":"SUM(G10:G15)","v":0}]
[]
[]
[]
[null,"Součet cen za zajištění podpory SIS s garantovanou dostupností: (cena v Kč za čtvrtletí bez DPH) součet cen z každého řádku za skupinou funkčních bloků přepočtenou (vynásobenou) na období plnění 4 let, tj. 16 čtvrtletí.\n\nPro tento součet cen stanovuje zadavatel maximálně přípustnou hodnotu, která činí 2,0 mil. Kč s tím, \nže její překročení je důvodem pro vyřazení nabídky. ",null,null,null,null,{"$f":"G16*16","v":0}]
[]
[]
[]
[null,"Předmět plnění: ","Schéma hodnocení:","Váha:"]
[null,"Služby rozvoje","Cena",0.26]
[]
[null,"2.a Cena za MD při obecném požadavku rozvoj na poskytnutí MD v termínech v kategorii A,B,C (cena v Kč za MD bez DPH)"]
[null,null,"Minimální hodnota pro hodnocení","Maximální hodnota","Nabízená hodnota "]
[null,"Prioritní MD NDB - kategorie A – poskytnutí služby se začátkem realizace do 1 dne",1,18000,null,null,null,0.01,{"$f":"Nabidka_MIN!E29/E29*100","v":{"$error":"#DIV/0!"}},{"$f":"I29*H29","v":{"$error":"#DIV/0!"}}]
[null,"Prioritní MD - kategorie B – poskytnutí služby se začátkem realizace od 2 do 5 dnů",1,16000,null,null,null,0.01,{"$f":"Nabidka_MIN!E30/E30*100","v":{"$error":"#DIV/0!"}},{"$error":"#DIV/0!"}]
[null,"MD - kategorie C – poskytnutí služby se začátkem realizace od 6 dnů do 1 měsíce, s tím, že tato kategorie pokrývá i služby v rámci SIS, které mohou mít i delší dobu  plnění",1,12000,null,null,null,0.16,{"$f":"Nabidka_MIN!E31/E31*100","v":{"$error":"#DIV/0!"}},{"$error":"#DIV/0!"}]
[]
[null,"2.b Cena za předmět plnění - specifikované požadavky"]
[null,null,"Minimální hodnota pro hodnocení","Maximální hodnota","Nabízená hodnota "]
[null,"Optimalizace změn po migraci na ORACLE verze 12\nAnalýza potřebných úprav databázových procedur",1,80000,null,null,null,0.01,{"$f":"Nabidka_MIN!E35/E35*100","v":{"$error":"#DIV/0!"}},{"$f":"I35*H35","v":{"$error":"#DIV/0!"}}]
[null,"Optimalizace změn po migraci na ORACLE verze 12\nAnalýza potřebných úprav, resp. optimalizace aplikací",1,70000,null,null,null,0.01,{"$f":"Nabidka_MIN!E36/E36*100","v":{"$error":"#DIV/0!"}},{"$error":"#DIV/0!"}]
[null,"Požadavky na změnu - rozvoj funkcionalit dle funkčních bloků",1,600000,null,null,null,0.06,{"$f":"Nabidka_MIN!E37/E37*100","v":{"$error":"#DIV/0!"}},{"$error":"#DIV/0!"}]
[]
[]
[]
[null,"Předmět plnění: ","Schéma hodnocení:","Váha:"]
[null,"Služby ostatní","Cena",0.04]
[]
[null,"3.a Cena za MD při požadavku na poskytnutí služby v termínech v kategorii A,B,C (cena v Kč za MD bez DPH)"]
[null,null,"Minimální hodnota pro hodnocení","Maximální hodnota","Nabízená hodnota "]
[null,"Prioritní MD NDB - kategorie A – poskytnutí služby se začátkem realizace do 1 dne",1,18000,null,null,null,2.5000000000000001E-3,{"$f":"Nabidka_MIN!E46/E46*100","v":{"$error":"#DIV/0!"}},{"$f":"I46*H46","v":{"$error":"#DIV/0!"}}]
[null,"Prioritní MD - kategorie B – poskytnutí služby se začátkem realizace od 2 do 5 dnů",1,16000,null,null,null,2.5000000000000001E-3,{"$f":"Nabidka_MIN!E47/E47*100","v":{"$error":"#DIV/0!"}},{"$error":"#DIV/0!"}]
[null,"MD - kategorie C – poskytnutí služby se začátkem realizace od 6 dnů do 1 měsíce, s tím, že tato kategorie pokrývá i služby v rámci SIS, které mohou mít i delší dobu  plnění",1,12000,null,null,null,7.4999999999999997E-3,{"$f":"Nabidka_MIN!E48/E48*100","v":{"$error":"#DIV/0!"}},{"$error":"#DIV/0!"}]
[]
[null,"3.b Cena za předmět plnění - specifikované požadavky"]
[null,null,"Minimální hodnota pro hodnocení","Maximální hodnota","Nabízená hodnota "]
[null,"Zavedení nástroje pro řízení a dokumentaci poskytovaných služeb, včetně školení interních uživatelů ",1,100000,null,null,null,2.5000000000000001E-3,{"$f":"Nabidka_MIN!E52/E52*100","v":{"$error":"#DIV/0!"}},{"$f":"I52*H52","v":{"$error":"#DIV/0!"}}]
[null,"Správa a podpora nástroje pro řízení a dokumentaci poskytovaných služeb,  s garantovanou dostupností 95% na čtvrtletní bázi (cena za 1 čtvrtletí poskytovaných služeb, vč. služby Servisdesk)",1,100000,null,null,null,1.4999999999999999E-2,{"$f":"Nabidka_MIN!E53/E53*100","v":{"$error":"#DIV/0!"}},{"$error":"#DIV/0!"}]
[null,"Převedení licence pro provozování nástroje pro řízení a dokumentaci poskytovaných služeb",1,400000,null,null,null,5.0000000000000001E-3,{"$f":"Nabidka_MIN!E54/E54*100","v":{"$error":"#DIV/0!"}},{"$error":"#DIV/0!"}]
[null,"Nasazení nové verze APV SIS na Testovací a produkční prostředí nad rámec služeb servisu (čtvrtletní balíčky)",1,20000,null,null,null,2.5000000000000001E-3,{"$f":"Nabidka_MIN!E55/E55*100","v":{"$error":"#DIV/0!"}},{"$error":"#DIV/0!"}]
[null,"Nasazení hotfixu APV SIS na Testovací a produkční prostředí nad rámec služeb servisu (čtvrtletní balíčky)",1,20000,null,null,null,2.5000000000000001E-3,{"$f":"Nabidka_MIN!E56/E56*100","v":{"$error":"#DIV/0!"}},{"$error":"#DIV/0!"}]
[]
[]
[]
[]
[]
[]
[null,"Předmět plnění: ","Schéma hodnocení:","Váha:"]
[null,"Služby rozvoje a servisní služby","Kvalitativní\nLhůty",0.04]
[]
[null,null,"Minimální hodnota pro hodnocení","Maximální hodnota","Nabízená hodnota "]
[null,"4.a Lhůta na odstranění vady plnění (zjištěné v akceptačním řízení) v hodinách za pracovní dny"]
[null,"Vada kategorie A",1,120,null,null,null,1.2E-2,{"$f":"Nabidka_MIN!E68/E68*100","v":{"$error":"#DIV/0!"}},{"$f":"I68*H68","v":{"$error":"#DIV/0!"}}]
[null,"Vada kategorie B",1,240,null,null,null,8.0000000000000002E-3,{"$f":"Nabidka_MIN!E69/E69*100","v":{"$error":"#DIV/0!"}},{"$error":"#DIV/0!"}]
[null,"Vada kategorie C",1,504,null,null,null,4.0000000000000001E-3,{"$f":"Nabidka_MIN!E70/E70*100","v":{"$error":"#DIV/0!"}},{"$error":"#DIV/0!"}]
[]
[null,"4.b Lhůta na odstranění záruční vady plnění v hodinách za pracovní dny "]
[null,"Vada kategorie A",1,120,null,null,null,8.0000000000000002E-3,{"$f":"Nabidka_MIN!E73/E73*100","v":{"$error":"#DIV/0!"}},{"$f":"I73*H73","v":{"$error":"#DIV/0!"}}]
[null,"Vada kategorie B",1,240,null,null,null,5.0000000000000001E-3,{"$f":"Nabidka_MIN!E74/E74*100","v":{"$error":"#DIV/0!"}},{"$error":"#DIV/0!"}]
[null,"Vada kategorie C",1,504,null,null,null,3.0000000000000001E-3,{"$f":"Nabidka_MIN!E75/E75*100","v":{"$error":"#DIV/0!"}},{"$error":"#DIV/0!"}]
[]
[null,"4.c Reakční doba v hodinách "]
[null,"Vada kategorie A",1,24,null,null,null,0]
[null,"Vada kategorie B",1,48,null,null,null,0]
[null,"Vada kategorie C",1,168,null,null,null,0]
[null,"Pozn.:"]
[null,"U lhůt pro odstranění vad a reakční doby se uvažuje 1 den v délce 24 hodin."]
[]
[]
[null,"Předmět plnění: ","Schéma hodnocení:","Váha:"]
[null,"Služby","Kvalitativní\nPříklad",0.24]
[]
[null,"5. Zpracování příkladu poskytovaných služeb"]
[null,null,"Minimální hodnota bodů","Maximální  hodnota bodů","Počet bodů"]
[null,"Zpracování příkladu řízení poskytovaných služeb",0,5,null,null,null,0.08,{"$f":"E90/Nabidka_MIN!E90*100","v":{"$error":"#DIV/0!"}},{"$f":"I90*H90","v":{"$error":"#DIV/0!"}}]
[null,"Zpracování příkladu EVID report",0,2,null,null,null,0.16,{"$f":"E91/Nabidka_MIN!E91*100","v":{"$error":"#DIV/0!"}},{"$error":"#DIV/0!"}]
[]
[null,"Předmět plnění: ","Schéma hodnocení:","Váha:"]
[null,"Služby","Kvalitativní\nProvozní parametry",0.12]
[]
[null,"6. Provozní režim a dostupnost u skupin funkčních bloků uvedené v tabulce 1. Cena za zajištění podpory SIS s garantovanou dostupností"]
[null,null,"Minimální hodnota bodů","Maximální  hodnota bodů","Počet bodů"]
[null,"Číslo skupiny: 41"]
[null,"Rozšíření provozního režimu na 5x12",0,8]
[null,"Zvýšení dostupnosti na 95%",0,14]
[null,"Zvýšení dostupnosti na 97%",0,20]
[null,"Číslo skupiny: 42"]
[null,"Rozšíření provozního režimu na 5x12",0,8]
[null,"Rozšíření provozního režimu na 7x16",0,22]
[null,"Zvýšení dostupnosti na 95%",0,14]
[null,"Zvýšení dostupnosti na 97%",0,20]
[null,"Celkem",0,70,null,null,null,0.12,{"$f":"E107/Nabidka_MIN!E107*100","v":{"$error":"#DIV/0!"}},{"$f":"I107*H107","v":{"$error":"#DIV/0!"}}]

{"sheet":"Nabidka_4","index":4,"n_rows":107,"n_cols":10,"rows_kept":107,"cut":false,"hidden":false,"merged":[[32,1,32,3],[1,1,1,6],[7,1,7,6],[15,1,15,5],[19,1,19,5],[26,1,26,3],[95,1,95,3],[97,1,97,3],[101,1,101,3],[43,1,43,3],[49,1,49,3],[66,1,66,3],[71,1,71,3],[76,1,76,3],[87,1,87,4]]}
[null,"Příloha č. 2E zadávací dokumentace\nZávazný formulář pro účely hodnocení","Číslo nabídky:",4,"Účastník ZŘ:","DD"]
[null,"Účastník zadávacího řízení vyplňuje nebo upravuje žlutě podbarvené položky. \nU položek vyplněných zadavatelem je oprávněn změnit hodnotu pouze na vyšší - je-li uvedena mininimální hodnota, resp. na nižší - je-li uvedena maximální hodnota.",null,null,null,null,null,null,"Body za položky","Body za položky s vahou"]
[null,"Zeleně podbarvená pole doplňuje zadavatel na základě hodnocení.",null,null,null,null,null,null,"Celkem","Celkem"]
[]
[null,"Předmět plnění: ","Schéma hodnocení:","Váha:",null,null,null,null,{"$f":"SUM(I10:I107)","v":{"$error":"#DIV/0!"}},{"$f":"SUM(J10:J107)","v":{"$error":"#DIV/0!"}}]
[null,"Servisní služby","Cena",0.3]
[]
[null,"1. Cena za zajištění podpory SIS s garantovanou dostupností: (cena v Kč za čtvrtletí bez DPH)"]
["Číslo\n skupiny","Skupina funkčních bloků\nFunkční bloky jsou seskupeny a ohraničeny dvojitou čarou, vyplněná cena služeb pokrývá vždy celou skupinu funkčních bloků, resp. jejich seskupení ","Nabídka pro část veřejné zakázky ","Garantovaná dostupnost v %\n(minimální)","Lhůta na odstranění vady kat. A v hodinách (maximální)","Provozní režim\n(minimální)","Cena v Kč","Váha položky v %","Body za položku","Body za položku s vahou"]
[41,"EVID CENTRAL  (Evidenční systém statistického zpracování)",5,0.9,48,"5x8",null,0.05,{"$f":"Nabidka_MIN!G10/G10*100","v":{"$error":"#DIV/0!"}},{"$f":"I10*H10","v":{"$error":"#DIV/0!"}}]
[41,"VSTUP EVID KS (Evidenční systém statistického zpracování - instance na krajských správách)",5,0.92,48,"5x10",null,0.15,{"$f":"Nabidka_MIN!G11/G11*100","v":{"$error":"#DIV/0!"}},{"$f":"I11*H11","v":{"$error":"#DIV/0!"}}]
[42,"EVID CENTRAL ZPRAVODAJSKÁ POVINNOST (Výkazy dle IČO)",5,0.92,48,"5x10",null,0.1,{"$f":"Nabidka_MIN!G12/G12*100","v":{"$error":"#DIV/0!"}},{"$error":"#DIV/0!"}]
[]
[]
[]
[null,"Součet cen za zajištění podpory SIS s garantovanou dostupností: (cena v Kč za čtvrtletí bez DPH) ",null,null,null,null,{"$f":"SUM(G10:G15)","v":0}]
[]
[]
[]
[null,"Součet cen za zajištění podpory SIS s garantovanou dostupností: (cena v Kč za čtvrtletí bez DPH) součet cen z každého řádku za skupinou funkčních bloků přepočtenou (vynásobenou) na období plnění 4 let, tj. 16 čtvrtletí.\n\nPro tento součet cen stanovuje zadavatel maximálně přípustnou hodnotu, která činí 2,0 mil. Kč s tím, \nže její překročení je důvodem pro vyřazení nabídky. ",null,null,null,null,{"$f":"G16*16","v":0}]
[]
[]
[]
[null,"Předmět plnění: ","Schéma hodnocení:","Váha:"]
[null,"Služby rozvoje","Cena",0.26]
[]
[null,"2.a Cena za MD při obecném požadavku rozvoj na poskytnutí MD v termínech v kategorii A,B,C (cena v Kč za MD bez DPH)"]
[null,null,"Minimální hodnota pro hodnocení","Maximální hodnota","Nabízená hodnota "]
[null,"Prioritní MD NDB - kategorie A – poskytnutí služby se začátkem realizace do 1 dne",1,18000,null,null,null,0.01,{"$f":"Nabidka_MIN!E29/E29*100","v":{"$error":"#DIV/0!"}},{"$f":"I29*H29","v":{"$error":"#DIV/0!"}}]
[null,"Prioritní MD - kategorie B – poskytnutí služby se začátkem realizace od 2 do 5 dnů",1,16000,null,null,null,0.01,{"$f":"Nabidka_MIN!E30/E30*100","v":{"$error":"#DIV/0!"}},{"$error":"#DIV/0!"}]
[null,"MD - kategorie C – poskytnutí služby se začátkem realizace od 6 dnů do 1 měsíce, s tím, že tato kategorie pokrývá i služby v rámci SIS, které mohou mít i delší dobu  plnění",1,12000,null,null,null,0.16,{"$f":"Nabidka_MIN!E31/E31*100","v":{"$error":"#DIV/0!"}},{"$error":"#DIV/0!"}]
[]
[null,"2.b Cena za předmět plnění - specifikované požadavky"]
[null,null,"Minimální hodnota pro hodnocení","Maximální hodnota","Nabízená hodnota "]
[null,"Optimalizace změn po migraci na ORACLE verze 12\nAnalýza potřebných úprav databázových procedur",1,80000,null,null,null,0.01,{"$f":"Nabidka_MIN!E35/E35*100","v":{"$error":"#DIV/0!"}},{"$f":"I35*H35","v":{"$error":"#DIV/0!"}}]
[null,"Optimalizace změn po migraci na ORACLE verze 12\nAnalýza potřebných úprav, resp. optimalizace aplikací",1,70000,null,null,null,0.01,{"$f":"Nabidka_MIN!E36/E36*100","v":{"$error":"#DIV/0!"}},{"$error":"#DIV/0!"}]
[null,"Požadavky na změnu - rozvoj funkcionalit dle funkčních bloků",1,600000,null,null,null,0.06,{"$f":"Nabidka_MIN!E37/E37*100","v":{"$error":"#DIV/0!"}},{"$error":"#DIV/0!"}]
[]
[]
[]
[null,"Předmět plnění: ","Schéma hodnocení:","Váha:"]
[null,"Služby ostatní","Cena",0.04]
[]
[null,"3.a Cena za MD při požadavku na poskytnutí služby v termínech v kategorii A,B,C (cena v Kč za MD bez DPH)"]
[null,null,"Minimální hodnota pro hodnocení","Maximální hodnota","Nabízená hodnota "]
[null,"Prioritní MD NDB - kategorie A – poskytnutí služby se začátkem realizace do 1 dne",1,18000,null,null,null,2.5000000000000001E-3,{"$f":"Nabidka_MIN!E46/E46*100","v":{"$error":"#DIV/0!"}},{"$f":"I46*H46","v":{"$error":"#DIV/0!"}}]
[null,"Prioritní MD - kategorie B – poskytnutí služby se začátkem realizace od 2 do 5 dnů",1,16000,null,null,null,2.5000000000000001E-3,{"$f":"Nabidka_MIN!E47/E47*100","v":{"$error":"#DIV/0!"}},{"$error":"#DIV/0!"}]
[null,"MD - kategorie C – poskytnutí služby se začátkem realizace od 6 dnů do 1 měsíce, s tím, že tato kategorie pokrývá i služby v rámci SIS, které mohou mít i delší dobu  plnění",1,12000,null,null,null,7.4999999999999997E-3,{"$f":"Nabidka_MIN!E48/E48*100","v":{"$error":"#DIV/0!"}},{"$error":"#DIV/0!"}]
[]
[null,"3.b Cena za předmět plnění - specifikované požadavky"]
[null,null,"Minimální hodnota pro hodnocení","Maximální hodnota","Nabízená hodnota "]
[null,"Zavedení nástroje pro řízení a dokumentaci poskytovaných služeb, včetně školení interních uživatelů ",1,100000,null,null,null,2.5000000000000001E-3,{"$f":"Nabidka_MIN!E52/E52*100","v":{"$error":"#DIV/0!"}},{"$f":"I52*H52","v":{"$error":"#DIV/0!"}}]
[null,"Správa a podpora nástroje pro řízení a dokumentaci poskytovaných služeb,  s garantovanou dostupností 95% na čtvrtletní bázi (cena za 1 čtvrtletí poskytovaných služeb, vč. služby Servisdesk)",1,100000,null,null,null,1.4999999999999999E-2,{"$f":"Nabidka_MIN!E53/E53*100","v":{"$error":"#DIV/0!"}},{"$error":"#DIV/0!"}]
[null,"Převedení licence pro provozování nástroje pro řízení a dokumentaci poskytovaných služeb",1,400000,null,null,null,5.0000000000000001E-3,{"$f":"Nabidka_MIN!E54/E54*100","v":{"$error":"#DIV/0!"}},{"$error":"#DIV/0!"}]
[null,"Nasazení nové verze APV SIS na Testovací a produkční prostředí nad rámec služeb servisu (čtvrtletní balíčky)",1,20000,null,null,null,2.5000000000000001E-3,{"$f":"Nabidka_MIN!E55/E55*100","v":{"$error":"#DIV/0!"}},{"$error":"#DIV/0!"}]
[null,"Nasazení hotfixu APV SIS na Testovací a produkční prostředí nad rámec služeb servisu (čtvrtletní balíčky)",1,20000,null,null,null,2.5000000000000001E-3,{"$f":"Nabidka_MIN!E56/E56*100","v":{"$error":"#DIV/0!"}},{"$error":"#DIV/0!"}]
[]
[]
[]
[]
[]
[]
[null,"Předmět plnění: ","Schéma hodnocení:","Váha:"]
[null,"Služby rozvoje a servisní služby","Kvalitativní\nLhůty",0.04]
[]
[null,null,"Minimální hodnota pro hodnocení","Maximální hodnota","Nabízená hodnota "]
[null,"4.a Lhůta na odstranění vady plnění (zjištěné v akceptačním řízení) v hodinách za pracovní dny"]
[null,"Vada kategorie A",1,120,null,null,null,1.2E-2,{"$f":"Nabidka_MIN!E68/E68*100","v":{"$error":"#DIV/0!"}},{"$f":"I68*H68","v":{"$error":"#DIV/0!"}}]
[null,"Vada kategorie B",1,240,null,null,null,8.0000000000000002E-3,{"$f":"Nabidka_MIN!E69/E69*100","v":{"$error":"#DIV/0!"}},{"$error":"#DIV/0!"}]
[null,"Vada kategorie C",1,504,null,null,null,4.0000000000000001E-3,{"$f":"Nabidka_MIN!E70/E70*100","v":{"$error":"#DIV/0!"}},{"$error":"#DIV/0!"}]
[]
[null,"4.b Lhůta na odstranění záruční vady plnění v hodinách za pracovní dny "]
[null,"Vada kategorie A",1,120,null,null,null,8.0000000000000002E-3,{"$f":"Nabidka_MIN!E73/E73*100","v":{"$error":"#DIV/0!"}},{"$f":"I73*H73","v":{"$error":"#DIV/0!"}}]
[null,"Vada kategorie B",1,240,null,null,null,5.0000000000000001E-3,{"$f":"Nabidka_MIN!E74/E74*100","v":{"$error":"#DIV/0!"}},{"$error":"#DIV/0!"}]
[null,"Vada kategorie C",1,504,null,null,null,3.0000000000000001E-3,{"$f":"Nabidka_MIN!E75/E75*100","v":{"$error":"#DIV/0!"}},{"$error":"#DIV/0!"}]
[]
[null,"4.c Reakční doba v hodinách "]
[null,"Vada kategorie A",1,24,null,null,null,0]
[null,"Vada kategorie B",1,48,null,null,null,0]
[null,"Vada kategorie C",1,168,null,null,null,0]
[null,"Pozn.:"]
[null,"U lhůt pro odstranění vad a reakční doby se uvažuje 1 den v délce 24 hodin."]
[]
[]
[null,"Předmět plnění: ","Schéma hodnocení:","Váha:"]
[null,"Služby","Kvalitativní\nPříklad",0.24]
[]
[null,"5. Zpracování příkladu poskytovaných služeb"]
[null,null,"Minimální hodnota bodů","Maximální  hodnota bodů","Počet bodů"]
[null,"Zpracování příkladu řízení poskytovaných služeb",0,5,null,null,null,0.08,{"$f":"E90/Nabidka_MIN!E90*100","v":{"$error":"#DIV/0!"}},{"$f":"I90*H90","v":{"$error":"#DIV/0!"}}]
[null,"Zpracování příkladu EVID report",0,2,null,null,null,0.16,{"$f":"E91/Nabidka_MIN!E91*100","v":{"$error":"#DIV/0!"}},{"$error":"#DIV/0!"}]
[]
[null,"Předmět plnění: ","Schéma hodnocení:","Váha:"]
[null,"Služby","Kvalitativní\nProvozní parametry",0.12]
[]
[null,"6. Provozní režim a dostupnost u skupin funkčních bloků uvedené v tabulce 1. Cena za zajištění podpory SIS s garantovanou dostupností"]
[null,null,"Minimální hodnota bodů","Maximální  hodnota bodů","Počet bodů"]
[null,"Číslo skupiny: 41"]
[null,"Rozšíření provozního režimu na 5x12",0,8]
[null,"Zvýšení dostupnosti na 95%",0,14]
[null,"Zvýšení dostupnosti na 97%",0,20]
[null,"Číslo skupiny: 42"]
[null,"Rozšíření provozního režimu na 5x12",0,8]
[null,"Rozšíření provozního režimu na 7x16",0,22]
[null,"Zvýšení dostupnosti na 95%",0,14]
[null,"Zvýšení dostupnosti na 97%",0,20]
[null,"Celkem",0,70,null,null,null,0.12,{"$f":"E107/Nabidka_MIN!E107*100","v":{"$error":"#DIV/0!"}},{"$f":"I107*H107","v":{"$error":"#DIV/0!"}}]

{"sheet":"Nabidka_5","index":5,"n_rows":107,"n_cols":10,"rows_kept":107,"cut":false,"hidden":false,"merged":[[32,1,32,3],[1,1,1,6],[7,1,7,6],[15,1,15,5],[19,1,19,5],[26,1,26,3],[95,1,95,3],[97,1,97,3],[101,1,101,3],[43,1,43,3],[49,1,49,3],[66,1,66,3],[71,1,71,3],[76,1,76,3],[87,1,87,4]]}
[null,"Příloha č. 2E zadávací dokumentace\nZávazný formulář pro účely hodnocení","Číslo nabídky:",5,"Účastník ZŘ:","EE"]
[null,"Účastník zadávacího řízení vyplňuje nebo upravuje žlutě podbarvené položky. \nU položek vyplněných zadavatelem je oprávněn změnit hodnotu pouze na vyšší - je-li uvedena mininimální hodnota, resp. na nižší - je-li uvedena maximální hodnota.",null,null,null,null,null,null,"Body za položky","Body za položky s vahou"]
[null,"Zeleně podbarvená pole doplňuje zadavatel na základě hodnocení.",null,null,null,null,null,null,"Celkem","Celkem"]
[]
[null,"Předmět plnění: ","Schéma hodnocení:","Váha:",null,null,null,null,{"$f":"SUM(I10:I107)","v":{"$error":"#DIV/0!"}},{"$f":"SUM(J10:J107)","v":{"$error":"#DIV/0!"}}]
[null,"Servisní služby","Cena",0.3]
[]
[null,"1. Cena za zajištění podpory SIS s garantovanou dostupností: (cena v Kč za čtvrtletí bez DPH)"]
["Číslo\n skupiny","Skupina funkčních bloků\nFunkční bloky jsou seskupeny a ohraničeny dvojitou čarou, vyplněná cena služeb pokrývá vždy celou skupinu funkčních bloků, resp. jejich seskupení ","Nabídka pro část veřejné zakázky ","Garantovaná dostupnost v %\n(minimální)","Lhůta na odstranění vady kat. A v hodinách (maximální)","Provozní režim\n(minimální)","Cena v Kč","Váha položky v %","Body za položku","Body za položku s vahou"]
[41,"EVID CENTRAL  (Evidenční systém statistického zpracování)",5,0.9,48,"5x8",null,0.05,{"$f":"Nabidka_MIN!G10/G10*100","v":{"$error":"#DIV/0!"}},{"$f":"I10*H10","v":{"$error":"#DIV/0!"}}]
[41,"VSTUP EVID KS (Evidenční systém statistického zpracování - instance na krajských správách)",5,0.92,48,"5x10",null,0.15,{"$f":"Nabidka_MIN!G11/G11*100","v":{"$error":"#DIV/0!"}},{"$f":"I11*H11","v":{"$error":"#DIV/0!"}}]
[42,"EVID CENTRAL ZPRAVODAJSKÁ POVINNOST (Výkazy dle IČO)",5,0.92,48,"5x10",null,0.1,{"$f":"Nabidka_MIN!G12/G12*100","v":{"$error":"#DIV/0!"}},{"$error":"#DIV/0!"}]
[]
[]
[]
[null,"Součet cen za zajištění podpory SIS s garantovanou dostupností: (cena v Kč za čtvrtletí bez DPH) ",null,null,null,null,{"$f":"SUM(G10:G15)","v":0}]
[]
[]
[]
[null,"Součet cen za zajištění podpory SIS s garantovanou dostupností: (cena v Kč za čtvrtletí bez DPH) součet cen z každého řádku za skupinou funkčních bloků přepočtenou (vynásobenou) na období plnění 4 let, tj. 16 čtvrtletí.\n\nPro tento součet cen stanovuje zadavatel maximálně přípustnou hodnotu, která činí 2,0 mil. Kč s tím, \nže její překročení je důvodem pro vyřazení nabídky. ",null,null,null,null,{"$f":"G16*16","v":0}]
[]
[]
[]
[null,"Předmět plnění: ","Schéma hodnocení:","Váha:"]
[null,"Služby rozvoje","Cena",0.26]
[]
[null,"2.a Cena za MD při obecném požadavku rozvoj na poskytnutí MD v termínech v kategorii A,B,C (cena v Kč za MD bez DPH)"]
[null,null,"Minimální hodnota pro hodnocení","Maximální hodnota","Nabízená hodnota "]
[null,"Prioritní MD NDB - kategorie A – poskytnutí služby se začátkem realizace do 1 dne",1,18000,null,null,null,0.01,{"$f":"Nabidka_MIN!E29/E29*100","v":{"$error":"#DIV/0!"}},{"$f":"I29*H29","v":{"$error":"#DIV/0!"}}]
[null,"Prioritní MD - kategorie B – poskytnutí služby se začátkem realizace od 2 do 5 dnů",1,16000,null,null,null,0.01,{"$f":"Nabidka_MIN!E30/E30*100","v":{"$error":"#DIV/0!"}},{"$error":"#DIV/0!"}]
[null,"MD - kategorie C – poskytnutí služby se začátkem realizace od 6 dnů do 1 měsíce, s tím, že tato kategorie pokrývá i služby v rámci SIS, které mohou mít i delší dobu  plnění",1,12000,null,null,null,0.16,{"$f":"Nabidka_MIN!E31/E31*100","v":{"$error":"#DIV/0!"}},{"$error":"#DIV/0!"}]
[]
[null,"2.b Cena za předmět plnění - specifikované požadavky"]
[null,null,"Minimální hodnota pro hodnocení","Maximální hodnota","Nabízená hodnota "]
[null,"Optimalizace změn po migraci na ORACLE verze 12\nAnalýza potřebných úprav databázových procedur",1,80000,null,null,null,0.01,{"$f":"Nabidka_MIN!E35/E35*100","v":{"$error":"#DIV/0!"}},{"$f":"I35*H35","v":{"$error":"#DIV/0!"}}]
[null,"Optimalizace změn po migraci na ORACLE verze 12\nAnalýza potřebných úprav, resp. optimalizace aplikací",1,70000,null,null,null,0.01,{"$f":"Nabidka_MIN!E36/E36*100","v":{"$error":"#DIV/0!"}},{"$error":"#DIV/0!"}]
[null,"Požadavky na změnu - rozvoj funkcionalit dle funkčních bloků",1,600000,null,null,null,0.06,{"$f":"Nabidka_MIN!E37/E37*100","v":{"$error":"#DIV/0!"}},{"$error":"#DIV/0!"}]
[]
[]
[]
[null,"Předmět plnění: ","Schéma hodnocení:","Váha:"]
[null,"Služby ostatní","Cena",0.04]
[]
[null,"3.a Cena za MD při požadavku na poskytnutí služby v termínech v kategorii A,B,C (cena v Kč za MD bez DPH)"]
[null,null,"Minimální hodnota pro hodnocení","Maximální hodnota","Nabízená hodnota "]
[null,"Prioritní MD NDB - kategorie A – poskytnutí služby se začátkem realizace do 1 dne",1,18000,null,null,null,2.5000000000000001E-3,{"$f":"Nabidka_MIN!E46/E46*100","v":{"$error":"#DIV/0!"}},{"$f":"I46*H46","v":{"$error":"#DIV/0!"}}]
[null,"Prioritní MD - kategorie B – poskytnutí služby se začátkem realizace od 2 do 5 dnů",1,16000,null,null,null,2.5000000000000001E-3,{"$f":"Nabidka_MIN!E47/E47*100","v":{"$error":"#DIV/0!"}},{"$error":"#DIV/0!"}]
[null,"MD - kategorie C – poskytnutí služby se začátkem realizace od 6 dnů do 1 měsíce, s tím, že tato kategorie pokrývá i služby v rámci SIS, které mohou mít i delší dobu  plnění",1,12000,null,null,null,7.4999999999999997E-3,{"$f":"Nabidka_MIN!E48/E48*100","v":{"$error":"#DIV/0!"}},{"$error":"#DIV/0!"}]
[]
[null,"3.b Cena za předmět plnění - specifikované požadavky"]
[null,null,"Minimální hodnota pro hodnocení","Maximální hodnota","Nabízená hodnota "]
[null,"Zavedení nástroje pro řízení a dokumentaci poskytovaných služeb, včetně školení interních uživatelů ",1,100000,null,null,null,2.5000000000000001E-3,{"$f":"Nabidka_MIN!E52/E52*100","v":{"$error":"#DIV/0!"}},{"$f":"I52*H52","v":{"$error":"#DIV/0!"}}]
[null,"Správa a podpora nástroje pro řízení a dokumentaci poskytovaných služeb,  s garantovanou dostupností 95% na čtvrtletní bázi (cena za 1 čtvrtletí poskytovaných služeb, vč. služby Servisdesk)",1,100000,null,null,null,1.4999999999999999E-2,{"$f":"Nabidka_MIN!E53/E53*100","v":{"$error":"#DIV/0!"}},{"$error":"#DIV/0!"}]
[null,"Převedení licence pro provozování nástroje pro řízení a dokumentaci poskytovaných služeb",1,400000,null,null,null,5.0000000000000001E-3,{"$f":"Nabidka_MIN!E54/E54*100","v":{"$error":"#DIV/0!"}},{"$error":"#DIV/0!"}]
[null,"Nasazení nové verze APV SIS na Testovací a produkční prostředí nad rámec služeb servisu (čtvrtletní balíčky)",1,20000,null,null,null,2.5000000000000001E-3,{"$f":"Nabidka_MIN!E55/E55*100","v":{"$error":"#DIV/0!"}},{"$error":"#DIV/0!"}]
[null,"Nasazení hotfixu APV SIS na Testovací a produkční prostředí nad rámec služeb servisu (čtvrtletní balíčky)",1,20000,null,null,null,2.5000000000000001E-3,{"$f":"Nabidka_MIN!E56/E56*100","v":{"$error":"#DIV/0!"}},{"$error":"#DIV/0!"}]
[]
[]
[]
[]
[]
[]
[null,"Předmět plnění: ","Schéma hodnocení:","Váha:"]
[null,"Služby rozvoje a servisní služby","Kvalitativní\nLhůty",0.04]
[]
[null,null,"Minimální hodnota pro hodnocení","Maximální hodnota","Nabízená hodnota "]
[null,"4.a Lhůta na odstranění vady plnění (zjištěné v akceptačním řízení) v hodinách za pracovní dny"]
[null,"Vada kategorie A",1,120,null,null,null,1.2E-2,{"$f":"Nabidka_MIN!E68/E68*100","v":{"$error":"#DIV/0!"}},{"$f":"I68*H68","v":{"$error":"#DIV/0!"}}]
[null,"Vada kategorie B",1,240,null,null,null,8.0000000000000002E-3,{"$f":"Nabidka_MIN!E69/E69*100","v":{"$error":"#DIV/0!"}},{"$error":"#DIV/0!"}]
[null,"Vada kategorie C",1,504,null,null,null,4.0000000000000001E-3,{"$f":"Nabidka_MIN!E70/E70*100","v":{"$error":"#DIV/0!"}},{"$error":"#DIV/0!"}]
[]
[null,"4.b Lhůta na odstranění záruční vady plnění v hodinách za pracovní dny "]
[null,"Vada kategorie A",1,120,null,null,null,8.0000000000000002E-3,{"$f":"Nabidka_MIN!E73/E73*100","v":{"$error":"#DIV/0!"}},{"$f":"I73*H73","v":{"$error":"#DIV/0!"}}]
[null,"Vada kategorie B",1,240,null,null,null,5.0000000000000001E-3,{"$f":"Nabidka_MIN!E74/E74*100","v":{"$error":"#DIV/0!"}},{"$error":"#DIV/0!"}]
[null,"Vada kategorie C",1,504,null,null,null,3.0000000000000001E-3,{"$f":"Nabidka_MIN!E75/E75*100","v":{"$error":"#DIV/0!"}},{"$error":"#DIV/0!"}]
[]
[null,"4.c Reakční doba v hodinách "]
[null,"Vada kategorie A",1,24,null,null,null,0]
[null,"Vada kategorie B",1,48,null,null,null,0]
[null,"Vada kategorie C",1,168,null,null,null,0]
[null,"Pozn.:"]
[null,"U lhůt pro odstranění vad a reakční doby se uvažuje 1 den v délce 24 hodin."]
[]
[]
[null,"Předmět plnění: ","Schéma hodnocení:","Váha:"]
[null,"Služby","Kvalitativní\nPříklad",0.24]
[]
[null,"5. Zpracování příkladu poskytovaných služeb"]
[null,null,"Minimální hodnota bodů","Maximální  hodnota bodů","Počet bodů"]
[null,"Zpracování příkladu řízení poskytovaných služeb",0,5,null,null,null,0.08,{"$f":"E90/Nabidka_MIN!E90*100","v":{"$error":"#DIV/0!"}},{"$f":"I90*H90","v":{"$error":"#DIV/0!"}}]
[null,"Zpracování příkladu EVID report",0,2,null,null,null,0.16,{"$f":"E91/Nabidka_MIN!E91*100","v":{"$error":"#DIV/0!"}},{"$error":"#DIV/0!"}]
[]
[null,"Předmět plnění: ","Schéma hodnocení:","Váha:"]
[null,"Služby","Kvalitativní\nProvozní parametry",0.12]
[]
[null,"6. Provozní režim a dostupnost u skupin funkčních bloků uvedené v tabulce 1. Cena za zajištění podpory SIS s garantovanou dostupností"]
[null,null,"Minimální hodnota bodů","Maximální  hodnota bodů","Počet bodů"]
[null,"Číslo skupiny: 41"]
[null,"Rozšíření provozního režimu na 5x12",0,8]
[null,"Zvýšení dostupnosti na 95%",0,14]
[null,"Zvýšení dostupnosti na 97%",0,20]
[null,"Číslo skupiny: 42"]
[null,"Rozšíření provozního režimu na 5x12",0,8]
[null,"Rozšíření provozního režimu na 7x16",0,22]
[null,"Zvýšení dostupnosti na 95%",0,14]
[null,"Zvýšení dostupnosti na 97%",0,20]
[null,"Celkem",0,70,null,null,null,0.12,{"$f":"E107/Nabidka_MIN!E107*100","v":{"$error":"#DIV/0!"}},{"$f":"I107*H107","v":{"$error":"#DIV/0!"}}]

{"sheet":"Nabidka_MIN","index":6,"n_rows":107,"n_cols":8,"rows_kept":107,"cut":false,"hidden":false,"merged":[[32,1,32,3],[1,1,1,6],[7,1,7,6],[15,1,15,5],[19,1,19,5],[26,1,26,3],[95,1,95,3],[97,1,97,3],[101,1,101,3],[43,1,43,3],[49,1,49,3],[66,1,66,3],[71,1,71,3],[76,1,76,3],[87,1,87,4]]}
[null,"Příloha č. 2E zadávací dokumentace\nZávazný formulář pro účely hodnocení","Číslo nabídky:","MIN","Účastník ZŘ:","Nejvýhodnější hodnoty"]
[null,"Účastník zadávacího řízení vyplňuje nebo upravuje žlutě podbarvené položky. \nU položek vyplněných zadavatelem je oprávněn změnit hodnotu pouze na vyšší - je-li uvedena mininimální hodnota, resp. na nižší - je-li uvedena maximální hodnota."]
[null,"Zeleně podbarvená pole doplňuje zadavatel na základě hodnocení."]
[]
[null,"Předmět plnění: ","Schéma hodnocení:","Váha:"]
[null,"Servisní služby","Cena",0.3]
[]
[null,"1. Cena za zajištění podpory SIS s garantovanou dostupností: (cena v Kč za čtvrtletí bez DPH)"]
["Číslo\n skupiny","Skupina funkčních bloků\nFunkční bloky jsou seskupeny a ohraničeny dvojitou čarou, vyplněná cena služeb pokrývá vždy celou skupinu funkčních bloků, resp. jejich seskupení ","Nabídka pro část veřejné zakázky ","Garantovaná dostupnost v %\n(minimální)","Lhůta na odstranění vady kat. A v hodinách (maximální)","Provozní režim\n(minimální)","Cena v Kč","Váha položky v %"]
[41,"EVID CENTRAL  (Evidenční systém statistického zpracování)",5,0.9,48,"5x8",{"$f":"MIN(Nabidka_1!G10,Nabidka_2!G10,Nabidka_3!G10,Nabidka_4!G10,Nabidka_5!G10)","v":0},0.05]
[41,"VSTUP EVID KS (Evidenční systém statistického zpracování - instance na krajských správách)",5,0.92,48,"5x10",{"$f":"MIN(Nabidka_1!G11,Nabidka_2!G11,Nabidka_3!G11,Nabidka_4!G11,Nabidka_5!G11)","v":0},0.15]
[42,"EVID CENTRAL ZPRAVODAJSKÁ POVINNOST (Výkazy dle IČO)",5,0.92,48,"5x10",{"$f":"MIN(Nabidka_1!G12,Nabidka_2!G12,Nabidka_3!G12,Nabidka_4!G12,Nabidka_5!G12)","v":0},0.1]
[]
[]
[]
[null,"Součet cen za zajištění podpory SIS s garantovanou dostupností: (cena v Kč za čtvrtletí bez DPH) ",null,null,null,null,{"$f":"SUM(G10:G15)","v":0}]
[]
[]
[]
[null,"Součet cen za zajištění podpory SIS s garantovanou dostupností: (cena v Kč za čtvrtletí bez DPH) součet cen z každého řádku za skupinou funkčních bloků přepočtenou (vynásobenou) na období plnění 4 let, tj. 16 čtvrtletí.\n\nPro tento součet cen stanovuje zadavatel maximálně přípustnou hodnotu, která činí 2,0 mil. Kč s tím, \nže její překročení je důvodem pro vyřazení nabídky. ",null,null,null,null,{"$f":"G16*16","v":0}]
[]
[]
[]
[null,"Předmět plnění: ","Schéma hodnocení:","Váha:"]
[null,"Služby rozvoje","Cena",0.26]
[]
[null,"2.a Cena za MD při obecném požadavku rozvoj na poskytnutí MD v termínech v kategorii A,B,C (cena v Kč za MD bez DPH)"]
[null,null,"Minimální hodnota pro hodnocení","Maximální hodnota","Nabízená hodnota "]
[null,"Prioritní MD NDB - kategorie A – poskytnutí služby se začátkem realizace do 1 dne",1,18000,{"$f":"MIN(Nabidka_1!E29,Nabidka_2!E29,Nabidka_3!E29,Nabidka_4!E29,Nabidka_5!E29)","v":0},null,null,0.01]
[null,"Prioritní MD - kategorie B – poskytnutí služby se začátkem realizace od 2 do 5 dnů",1,16000,{"$f":"MIN(Nabidka_1!E30,Nabidka_2!E30,Nabidka_3!E30,Nabidka_4!E30,Nabidka_5!E30)","v":0},null,null,0.01]
[null,"MD - kategorie C – poskytnutí služby se začátkem realizace od 6 dnů do 1 měsíce, s tím, že tato kategorie pokrývá i služby v rámci SIS, které mohou mít i delší dobu  plnění",1,12000,{"$f":"MIN(Nabidka_1!E31,Nabidka_2!E31,Nabidka_3!E31,Nabidka_4!E31,Nabidka_5!E31)","v":0},null,null,0.16]
[]
[null,"2.b Cena za předmět plnění - specifikované požadavky"]
[null,null,"Minimální hodnota pro hodnocení","Maximální hodnota","Nabízená hodnota "]
[null,"Optimalizace změn po migraci na ORACLE verze 12\nAnalýza potřebných úprav databázových procedur",1,80000,{"$f":"MIN(Nabidka_1!E35,Nabidka_2!E35,Nabidka_3!E35,Nabidka_4!E35,Nabidka_5!E35)","v":0},null,null,0.01]
[null,"Optimalizace změn po migraci na ORACLE verze 12\nAnalýza potřebných úprav, resp. optimalizace aplikací",1,70000,{"$f":"MIN(Nabidka_1!E36,Nabidka_2!E36,Nabidka_3!E36,Nabidka_4!E36,Nabidka_5!E36)","v":0},null,null,0.01]
[null,"Požadavky na změnu - rozvoj funkcionalit dle funkčních bloků",1,600000,{"$f":"MIN(Nabidka_1!E37,Nabidka_2!E37,Nabidka_3!E37,Nabidka_4!E37,Nabidka_5!E37)","v":0},null,null,0.06]
[]
[]
[]
[null,"Předmět plnění: ","Schéma hodnocení:","Váha:"]
[null,"Služby ostatní","Cena",0.04]
[]
[null,"3.a Cena za MD při požadavku na poskytnutí služby v termínech v kategorii A,B,C (cena v Kč za MD bez DPH)"]
[null,null,"Minimální hodnota pro hodnocení","Maximální hodnota","Nabízená hodnota "]
[null,"Prioritní MD NDB - kategorie A – poskytnutí služby se začátkem realizace do 1 dne",1,18000,{"$f":"MIN(Nabidka_1!E46,Nabidka_2!E46,Nabidka_3!E46,Nabidka_4!E46,Nabidka_5!E46)","v":0},null,null,2.5000000000000001E-3]
[null,"Prioritní MD - kategorie B – poskytnutí služby se začátkem realizace od 2 do 5 dnů",1,16000,{"$f":"MIN(Nabidka_1!E47,Nabidka_2!E47,Nabidka_3!E47,Nabidka_4!E47,Nabidka_5!E47)","v":0},null,null,2.5000000000000001E-3]
[null,"MD - kategorie C – poskytnutí služby se začátkem realizace od 6 dnů do 1 měsíce, s tím, že tato kategorie pokrývá i služby v rámci SIS, které mohou mít i delší dobu  plnění",1,12000,{"$f":"MIN(Nabidka_1!E48,Nabidka_2!E48,Nabidka_3!E48,Nabidka_4!E48,Nabidka_5!E48)","v":0},null,null,7.4999999999999997E-3]
[]
[null,"3.b Cena za předmět plnění - specifikované požadavky"]
[null,null,"Minimální hodnota pro hodnocení","Maximální hodnota","Nabízená hodnota "]
[null,"Zavedení nástroje pro řízení a dokumentaci poskytovaných služeb, včetně školení interních uživatelů ",1,100000,{"$f":"MIN(Nabidka_1!E52,Nabidka_2!E52,Nabidka_3!E52,Nabidka_4!E52,Nabidka_5!E52)","v":0},null,null,2.5000000000000001E-3]
[null,"Správa a podpora nástroje pro řízení a dokumentaci poskytovaných služeb,  s garantovanou dostupností 95% na čtvrtletní bázi (cena za 1 čtvrtletí poskytovaných služeb, vč. služby Servisdesk)",1,100000,{"$f":"MIN(Nabidka_1!E53,Nabidka_2!E53,Nabidka_3!E53,Nabidka_4!E53,Nabidka_5!E53)","v":0},null,null,1.4999999999999999E-2]
[null,"Převedení licence pro provozování nástroje pro řízení a dokumentaci poskytovaných služeb",1,400000,{"$f":"MIN(Nabidka_1!E54,Nabidka_2!E54,Nabidka_3!E54,Nabidka_4!E54,Nabidka_5!E54)","v":0},null,null,5.0000000000000001E-3]
[null,"Nasazení nové verze APV SIS na Testovací a produkční prostředí nad rámec služeb servisu (čtvrtletní balíčky)",1,20000,{"$f":"MIN(Nabidka_1!E55,Nabidka_2!E55,Nabidka_3!E55,Nabidka_4!E55,Nabidka_5!E55)","v":0},null,null,2.5000000000000001E-3]
[null,"Nasazení hotfixu APV SIS na Testovací a produkční prostředí nad rámec služeb servisu (čtvrtletní balíčky)",1,20000,{"$f":"MIN(Nabidka_1!E56,Nabidka_2!E56,Nabidka_3!E56,Nabidka_4!E56,Nabidka_5!E56)","v":0},null,null,2.5000000000000001E-3]
[]
[]
[]
[]
[]
[]
[null,"Předmět plnění: ","Schéma hodnocení:","Váha:"]
[null,"Služby rozvoje a servisní služby","Kvalitativní\nLhůty",0.04]
[]
[null,null,"Minimální hodnota pro hodnocení","Maximální hodnota","Nabízená hodnota "]
[null,"4.a Lhůta na odstranění vady plnění (zjištěné v akceptačním řízení) v hodinách za pracovní dny"]
[null,"Vada kategorie A",1,120,{"$f":"MIN(Nabidka_1!E68,Nabidka_2!E68,Nabidka_3!E68,Nabidka_4!E68,Nabidka_5!E68)","v":0},null,null,1.2E-2]
[null,"Vada kategorie B",1,240,{"$f":"MIN(Nabidka_1!E69,Nabidka_2!E69,Nabidka_3!E69,Nabidka_4!E69,Nabidka_5!E69)","v":0},null,null,8.0000000000000002E-3]
[null,"Vada kategorie C",1,504,{"$f":"MIN(Nabidka_1!E70,Nabidka_2!E70,Nabidka_3!E70,Nabidka_4!E70,Nabidka_5!E70)","v":0},null,null,4.0000000000000001E-3]
[]
[null,"4.b Lhůta na odstranění záruční vady plnění v hodinách za pracovní dny "]
[null,"Vada kategorie A",1,120,{"$f":"MIN(Nabidka_1!E73,Nabidka_2!E73,Nabidka_3!E73,Nabidka_4!E73,Nabidka_5!E73)","v":0},null,null,8.0000000000000002E-3]
[null,"Vada kategorie B",1,240,{"$f":"MIN(Nabidka_1!E74,Nabidka_2!E74,Nabidka_3!E74,Nabidka_4!E74,Nabidka_5!E74)","v":0},null,null,5.0000000000000001E-3]
[null,"Vada kategorie C",1,504,{"$f":"MIN(Nabidka_1!E75,Nabidka_2!E75,Nabidka_3!E75,Nabidka_4!E75,Nabidka_5!E75)","v":0},null,null,3.0000000000000001E-3]
[]
[null,"4.c Reakční doba v hodinách "]
[null,"Vada kategorie A",1,24,{"$f":"MIN(Nabidka_1!E78,Nabidka_2!E78,Nabidka_3!E78,Nabidka_4!E78,Nabidka_5!E78)","v":0},null,null,0]
[null,"Vada kategorie B",1,48,{"$f":"MIN(Nabidka_1!E79,Nabidka_2!E79,Nabidka_3!E79,Nabidka_4!E79,Nabidka_5!E79)","v":0},null,null,0]
[null,"Vada kategorie C",1,168,{"$f":"MIN(Nabidka_1!E80,Nabidka_2!E80,Nabidka_3!E80,Nabidka_4!E80,Nabidka_5!E80)","v":0},null,null,0]
[null,"Pozn.:"]
[null,"U lhůt pro odstranění vad a reakční doby se uvažuje 1 den v délce 24 hodin."]
[]
[]
[null,"Předmět plnění: ","Schéma hodnocení:","Váha:"]
[null,"Služby","Kvalitativní\nPříklad",0.24]
[]
[null,"5. Zpracování příkladu poskytovaných služeb"]
[null,null,"Minimální hodnota bodů","Maximální  hodnota bodů","Počet bodů"]
[null,"Zpracování příkladu řízení poskytovaných služeb",0,5,{"$f":"MAX(Nabidka_1!E90,Nabidka_2!E90,Nabidka_3!E90,Nabidka_4!E90,Nabidka_5!E90)","v":0},null,null,0.08]
[null,"Zpracování příkladu EVID report",0,2,{"$f":"MAX(Nabidka_1!E91,Nabidka_2!E91,Nabidka_3!E91,Nabidka_4!E91,Nabidka_5!E91)","v":0},null,null,0.16]
[]
[null,"Předmět plnění: ","Schéma hodnocení:","Váha:"]
[null,"Služby","Kvalitativní\nProvozní parametry",0.12]
[]
[null,"6. Provozní režim a dostupnost u skupin funkčních bloků uvedené v tabulce 1. Cena za zajištění podpory SIS s garantovanou dostupností"]
[null,null,"Minimální hodnota bodů","Maximální  hodnota bodů","Počet bodů"]
[null,"Číslo skupiny: 41"]
[null,"Rozšíření provozního režimu na 5x12",0,8]
[null,"Zvýšení dostupnosti na 95%",0,14]
[null,"Zvýšení dostupnosti na 97%",0,20]
[null,"Číslo skupiny: 42"]
[null,"Rozšíření provozního režimu na 5x12",0,8]
[null,"Rozšíření provozního režimu na 7x16",0,22]
[null,"Zvýšení dostupnosti na 95%",0,14]
[null,"Zvýšení dostupnosti na 97%",0,20]
[null,"Celkem",0,70,{"$f":"MAX(Nabidka_1!E107,Nabidka_2!E107,Nabidka_3!E107,Nabidka_4!E107,Nabidka_5!E107)","v":0},null,null,0.12]